bitfinex-derivatives/quotes_SOLF0:USTF0_20250829
["timestamp","ask_amount","ask_price","bid_price","bid_amount"]
[1756485236048,0.0314931,205.11,205.03,14.87264238]
[1756485236252,0.0314931,205.11,205.07,11.8278]
[1756485236460,0.0314931,205.11,205.05,0.03650289]
[1756485238255,7.4214931,205.11,205.05,0.03650289]
[1756485238455,11.8087931,205.11,205.05,0.03650289]
[1756485238860,7.4214931,205.11,205.05,0.03650289]
[1756485239054,0.0314931,205.11,205.07,4.3878]
[1756485239256,0.0314931,205.11,205.07,11.8278]
[1756485239656,0.0314931,205.11,205.05,0.03650289]
[1756485240160,0.0314931,205.11,205.05,7.47650289]
[1756485240362,0.0314931,205.11,205.09,4.3874]
[1756485240562,0.0314931,205.11,205.05,14.90914527]
[1756485241158,0.0314931,205.11,205.08,4.3876]
[1756485241362,0.0314931,205.11,205.09,7.44]
[1756485241564,0.0314931,205.11,205.05,75.73394527]
[1756485241960,0.0314931,205.11,205.06,7.44]
[1756485243063,0.0314931,205.11,205.05,75.73394527]
[1756485243268,0.0314931,205.11,205.05,7.47650289]
[1756485245066,0.0314931,205.11,205.05,0.03650289]
[1756485245866,7.39,205.08,205.05,0.03650289]
[1756485246761,7.32,205.08,205.05,0.03650289]
[1756485247268,0.0314931,205.11,205.05,0.03650289]
[1756485247560,7.32,205.09,205.05,0.03650289]
[1756485247766,75.68234238,205.1,205.05,0.03650289]
[1756485248160,7.32,205.09,205.05,0.03650289]
[1756485248360,75.68234238,205.1,205.05,0.03650289]
[1756485248560,7.32,205.09,205.05,0.03650289]
[1756485248762,0.0314931,205.11,205.06,68.7404]
[1756485248957,0.0314931,205.11,205.05,7.34650289]
[1756485249167,0.0314931,205.11,205.05,0.03650289]
[1756485249359,7.3514931,205.11,205.05,0.03650289]
[1756485249564,11.7387931,205.11,205.05,0.03650289]
[1756485249772,7.3514931,205.11,205.05,0.03650289]
[1756485250268,11.7075,205.1,205.05,0.03650289]
[1756485250667,7.32,205.09,205.05,0.03650289]
[1756485252568,0.0314931,205.11,205.05,0.03650289]
[1756485252778,0.0314931,205.11,205.05,7.34650289]
[1756485253468,0.0314931,205.11,205.09,11.6974]
[1756485253673,0.0314931,205.11,205.1,7.31]
[1756485254467,0.0314931,205.11,205.09,4.3874]
[1756485255168,0.0314931,205.11,205.09,11.6974]
[1756485255369,0.0314931,205.11,205.1,7.31]
[1756485255572,0.0314931,205.11,205.06,7.31]
[1756485256368,0.0314931,205.11,205.05,0.03650289]
[1756485256569,0.0314931,205.11,205.07,11.6978]
[1756485257172,0.0314931,205.11,205.08,7.31]
[1756485258078,0.0314931,205.11,205.1,7.31]
[1756485258472,0.0314931,205.11,205.06,7.31]
[1756485258876,0.0314931,205.11,205.08,7.31]
[1756485259480,0.0314931,205.11,205.08,11.6976]
[1756485260476,0.0314931,205.11,205.08,7.31]
[1756485260681,0.0314931,205.11,205.05,0.03650289]
[1756485260883,7.3514931,205.11,205.05,0.03650289]
[1756485261182,7.32,205.06,204.96,4.07031275]
[1756485261379,7.43264238,205.04,204.96,4.07031275]
[1756485261774,4.3895,205.01,204.96,4.07031275]
[1756485262380,7.32,205.04,204.96,4.07031275]
[1756485262582,0.03680052,205.01,204.97,7.31]
[1756485263476,0.03680052,205.01,204.96,4.07031275]
[1756485264181,0.03680052,205.01,204.99,11.6995]
[1756485264383,0.03680052,205.01,205.0,7.31]
[1756485266283,5.2e-07,205.01,205.0,7.31]
[1756485266581,5.2e-07,205.01,205.0,14.74264238]
[1756485266880,41.6268,205.13,205.02,68.2751]
[1756485267177,7.32,205.14,205.02,68.2751]
[1756485267482,7.32,205.14,205.04,7.31]
[1756485268282,7.32,205.14,205.08,4.3876]
[1756485268878,7.32,205.14,205.09,4.3874]
[1756485269082,466.8056,205.19,205.07,7.31]
[1756485269284,2.42163455,205.18,205.07,7.31]
[1756485269582,466.8056,205.19,205.07,7.31]
[1756485269782,2.42235197,205.18,205.08,4.3876]
[1756485269977,462.42,205.19,205.08,4.3876]
[1756485270173,4.3862,205.16,205.08,4.3876]
[1756485271685,4.3862,205.16,205.07,7.31]
[1756485272686,4.3862,205.16,205.09,0.03109166]
[1756485273387,7.32,205.15,205.09,0.03109166]
[1756485274486,4.3861,205.16,205.09,0.03109166]
[1756485274683,4.3864,205.15,205.09,0.03109166]
[1756485274983,462.38,205.19,205.09,0.03109166]
[1756485275186,334.98,205.19,205.09,0.03109166]
[1756485275381,68.2354,205.14,205.09,0.03109166]
[1756485275577,7.32,205.12,205.09,0.03109166]
[1756485275783,7.32,205.1,205.09,0.03109166]
[1756485276381,14.6105523,205.1,205.09,9.166e-05]
[1756485276988,12.1874,205.1,205.09,9.166e-05]
[1756485277289,14.61105535,205.1,205.09,9.166e-05]
[1756485277589,4.3881,205.07,204.97,11.7001]
[1756485277788,4.3881,205.07,204.98,4.3898]
[1756485278482,4.3883,205.06,204.98,4.3898]
[1756485278687,4.3883,205.06,205.0,4.07031275]
[1756485278987,0.03190519,205.04,205.0,11.98031275]
[1756485280188,0.03190519,205.04,205.0,8.45971275]
[1756485280384,0.03190519,205.04,205.01,7.91]
[1756485280584,0.03190519,205.04,205.0,4.07031275]
[1756485281188,0.03190519,205.04,205.01,7.91]
[1756485281388,0.03190519,205.04,205.0,72.35171275]
[1756485281789,0.03190519,205.04,205.01,7.91]
[1756485281988,0.03190519,205.04,205.0,72.35171275]
[1756485282690,0.03190519,205.04,205.02,4.3889]
[1756485282886,0.03190519,205.04,205.03,7.91]
[1756485283080,0.03190519,205.04,205.0,4.07031275]
[1756485283282,0.03190519,205.04,205.01,7.91]
[1756485283483,0.03190519,205.04,205.02,4.3889]
[1756485284490,0.03190519,205.04,205.0,4.07031275]
[1756485285288,0.03190519,205.04,205.01,4.3892]
[1756485286492,0.03190519,205.04,205.02,12.2989]
[1756485287197,0.03190519,205.04,205.02,4.3889]
[1756485287392,0.03190519,205.04,205.03,7.91]
[1756485287692,21.09,205.13,205.03,7.91]
[1756485287890,21.09,205.13,205.07,7.91]
[1756485290096,21.09,205.13,205.11,4.387]
[1756485290389,21.09,205.13,205.07,7.91]
[1756485290889,21.09,205.13,205.05,4.3884]
[1756485290890,7.31,205.12,205.05,4.3884]
[1756485291092,7.31,205.12,205.08,0.03104917]
[1756485291093,7.31,205.11,205.08,0.03104917]
[1756485291288,134.77264238,205.12,205.08,0.03104917]
[1756485291490,4.3876,205.1,205.08,0.03104917]
[1756485291697,7.31,205.09,205.08,0.03104917]
[1756485291891,14.74264238,205.09,205.01,4.07031275]
[1756485292700,4.3881,205.07,205.01,4.07031275]
[1756485292894,14.74264238,205.09,205.01,4.07031275]
[1756485293496,0.03347833,205.07,205.01,4.07031275]
[1756485294692,4.3887,205.04,205.01,4.07031275]
[1756485295096,11.6987,205.04,205.01,4.07031275]
[1756485295492,4.3891,205.03,205.01,4.07031275]
[1756485295698,7.31,205.02,205.01,4.07031275]
[1756485296094,7.31,205.02,204.99,4.07031275]
[1756485299203,4.3893,205.01,204.99,4.07031275]
[1756485300407,11.6993,205.01,204.99,4.07031275]
[1756485301508,7.31,205.0,204.99,4.07031275]
[1756485301708,14.74264238,205.0,204.94,5.41949586]
[1756485301904,7.31,204.98,204.94,5.41949586]
[1756485302105,134.73264238,204.97,204.94,5.41949586]
[1756485302302,4.3914,204.91,204.9,8.09867995]
[1756485302508,11.7014,204.91,204.9,8.09867995]
[1756485302708,135.09,204.91,204.82,7.91]
[1756485302912,4.3919,204.9,204.82,7.91]
[1756485303415,0.03315505,204.88,204.82,7.91]
[1756485304215,0.03315505,204.88,204.83,12.303]
[1756485304610,0.03315505,204.88,204.83,7.91]
[1756485304914,0.03315505,204.88,204.81,10.82966115]
[1756485305309,4.3927,204.86,204.81,10.82966115]
[1756485305509,7.31,204.85,204.81,10.82966115]
[1756485305813,7.31,204.83,204.79,10.82966115]
[1756485306010,127.3,204.84,204.79,10.82966115]
[1756485306313,7.31,204.83,204.79,10.82966115]
[1756485306514,127.3,204.84,204.79,10.82966115]
[1756485306715,7.38202316,204.83,204.79,10.82966115]
[1756485307514,0.03202316,204.83,204.79,10.82966115]
[1756485307908,0.03202316,204.83,204.81,4.3934]
[1756485308109,0.03202316,204.83,204.82,7.92]
[1756485309215,0.03202316,204.83,204.79,10.82966115]
[1756485309416,7.38202316,204.83,204.79,10.82966115]
[1756485310216,0.03202316,204.83,204.79,10.82966115]
[1756485310411,0.03202316,204.83,204.79,18.74966115]
[1756485311214,0.03202316,204.83,204.79,10.82966115]
[1756485313117,4.42532316,204.83,204.79,10.82966115]
[1756485313616,131.74532316,204.83,204.79,10.82966115]
[1756485313816,4.3936,204.81,204.79,10.82966115]
[1756485314021,11.7436,204.81,204.79,10.82966115]
[1756485314214,4.3936,204.81,204.79,3.15636115]
[1756485314421,4.3942,204.79,204.74,13.498753]
[1756485314616,68.352,204.79,204.74,13.498753]
[1756485314920,7.43264238,204.78,204.74,13.498753]
[1756485315420,4.3953,204.73,204.66,7.92]
[1756485315616,127.32,204.73,204.66,7.92]
[1756485315917,4.3959,204.71,204.64,7.92]
[1756485316121,7.38274694,204.72,204.67,0.03362914]
[1756485316317,0.03274694,204.72,204.68,7.92]
[1756485317222,0.03274694,204.72,204.67,0.03362914]
[1756485317521,0.03274694,204.72,204.68,7.92]
[1756485317718,0.03274694,204.72,204.67,4.43002914]
[1756485318321,0.03274694,204.72,204.68,7.92]
[1756485318615,0.03274694,204.72,204.67,4.43002914]
[1756485319125,0.03274694,204.72,204.68,7.92]
[1756485320021,7.35,204.71,204.67,0.03362914]
[1756485320223,0.03274694,204.72,204.67,7.95362914]
[1756485320421,0.03274694,204.72,204.67,0.03362914]
[1756485320618,0.03274694,204.72,204.68,7.92]
[1756485321218,0.03274694,204.72,204.67,7.95362914]
[1756485321515,4.3959,204.71,204.67,0.03362914]
[1756485321716,4.3959,204.71,204.67,7.95362914]
[1756485322718,4.3959,204.71,204.67,0.03362914]
[1756485322924,4.3959,204.71,204.67,7.95362914]
[1756485323225,0.03274694,204.72,204.67,0.03362914]
[1756485323725,0.03274694,204.72,204.68,7.92]
[1756485324424,0.03274694,204.72,204.67,0.03362914]
[1756485324825,0.03274694,204.72,204.7,4.3958]
[1756485325026,0.03274694,204.72,204.71,7.92]
[1756485326527,0.03274694,204.72,204.67,4.43012914]
[1756485327026,0.03274694,204.72,204.68,7.92]
[1756485328429,7.35,204.82,204.71,7.92]
[1756485328727,100.1732,204.84,204.75,4.3948]
[1756485329424,4.3933,204.83,204.75,4.3948]
[1756485329629,4.3933,204.83,204.77,0.03110438]
[1756485330425,7.35,204.81,204.77,0.03110438]
[1756485331030,131.7125,204.86,204.77,7.95110438]
[1756485331630,4.3929,204.85,204.77,7.95110438]
[1756485332222,4.3931,204.84,204.77,7.95110438]
[1756485332531,7.35,204.87,204.77,7.95110438]
[1756485332734,127.3,204.91,204.77,7.95110438]
[1756485333130,127.3,204.91,204.81,4.3934]
[1756485333528,127.3,204.91,204.8,7.92]
[1756485333728,7.43264238,204.96,204.84,7.92]
[1756485334031,114.98,204.95,204.84,7.92]
[1756485334233,127.28,204.96,204.84,7.43264238]
[1756485334532,7.35,204.97,204.87,0.03377161]
[1756485335627,7.35,204.97,204.89,4.3917]
[1756485335827,335.49,205.03,204.88,7.92]
[1756485336028,7.35,205.0,204.88,7.92]
[1756485336231,4.3904,204.96,204.86,4.3923]
[1756485336532,4.3904,204.96,204.92,0.03274665]
[1756485336728,7.92,204.95,204.92,0.03274665]
[1756485336931,7.92,204.93,204.92,0.03274665]
[1756485337424,127.24,204.97,204.92,0.03274665]
[1756485337835,7.92,204.96,204.92,0.03274665]
[1756485338628,127.24,204.99,204.92,0.03274665]
[1756485339834,4.39,204.98,204.92,0.03274665]
[1756485341433,29.8696,205.0,204.92,0.03274665]
[1756485341637,25.48,205.0,204.92,7.62274665]
[1756485341937,25.48,205.0,204.92,12.01394665]
[1756485343535,4.3898,204.99,204.92,7.62274665]
[1756485343736,7.92,204.99,204.92,0.03274665]
[1756485344136,32.91264238,205.0,204.92,0.03274665]
[1756485344334,152.64,205.0,204.92,0.03274665]
[1756485345235,157.0297,205.0,204.92,0.03274665]
[1756485345636,25.48,205.0,204.93,7.59]
[1756485347045,7.92,204.99,204.92,4.42394665]
[1756485347340,7.92,204.99,204.92,0.03274665]
[1756485347543,25.48,205.0,204.92,0.03274665]
[1756485347738,25.48,205.0,204.92,7.62274665]
[1756485348645,7.92,204.99,204.92,0.03274665]
[1756485349545,4.39,204.98,204.92,0.03274665]
[1756485349847,25.48,205.0,204.92,0.03274665]
[1756485350241,25.48,205.0,204.95,7.59]
[1756485350648,25.48,205.0,204.93,7.59]
[1756485350845,25.48,205.0,204.98,4.3899]
[1756485351148,25.48,205.0,204.95,7.59]
[1756485351542,25.48,205.0,204.97,0.03073742]
[1756485351944,25.48,205.0,204.97,7.4633798]
[1756485352143,25.48,205.0,204.98,7.59]
[1756485352342,25.48,205.0,204.99,11.9797]
[1756485353047,10.14815083,205.0,204.99,12.4597]
[1756485353248,7.92,205.09,205.04,4.3886]
[1756485353551,125.01939789,205.1,205.04,4.3886]
[1756485353842,125.01939789,205.1,205.04,4.42221659]
[1756485354048,7.92,205.1,205.05,4.3883]
[1756485354255,109.38,205.13,205.05,4.3883]
[1756485354442,110.22869769,205.13,205.05,4.3883]
[1756485354844,110.22869769,205.13,205.04,0.03361659]
[1756485355349,68.2425,205.12,205.04,0.03361659]
[1756485355550,15.35264238,205.11,205.04,0.03361659]
[1756485355851,7.92,205.09,205.04,0.03361659]
[1756485356559,7.43264238,205.08,205.04,0.03361659]
[1756485356751,7.92,205.05,205.04,0.03361659]
[1756485358157,12.3085,205.05,205.04,0.03361659]
[1756485358357,7.92,205.05,205.04,0.03361659]
[1756485358559,134.96,205.11,205.04,0.03361659]
[1756485359054,4.3875,205.1,205.04,0.03361659]
[1756485360361,0.84869769,205.13,205.05,7.59]
[1756485360555,327.94,205.18,205.05,7.59]
[1756485360556,7.92,205.16,205.05,7.59]
[1756485360959,7.92,205.13,204.99,7.59]
[1756485361371,7.43264238,205.14,205.08,0.03138342]
[1756485361563,7.92,205.13,205.08,0.03138342]
[1756485361765,7.92,205.09,205.08,0.03138342]
[1756485362766,7.92,205.05,204.94,7.59]
[1756485363159,85.92,205.05,204.94,7.59]
[1756485363772,7.43264238,205.04,204.94,7.59]
[1756485363974,7.92,205.03,204.94,7.59]
[1756485364268,7.92,205.03,204.93,5.38957707]
[1756485364471,4.3897,205.0,204.93,9.78057707]
[1756485364769,7.92,204.97,204.93,5.38957707]
[1756485364968,7.92,204.94,204.93,5.38957707]
[1756485365369,0.03361767,204.96,204.93,5.38957707]
[1756485365773,0.03361767,204.96,204.94,7.59]
[1756485366370,0.03361767,204.96,204.95,7.59]
[1756485368667,0.03361767,204.96,204.92,4.3912]
[1756485368874,0.03361767,204.96,204.89,7.78]
[1756485369375,0.03361767,204.96,204.9,4.3916]
[1756485371376,0.03361767,204.96,204.92,7.78]
[1756485372175,0.03361767,204.96,204.94,4.3907]
[1756485373273,0.03361767,204.96,204.95,7.78]
[1756485375078,1.767e-05,204.96,204.95,8.26]
[1756485375378,7.42,205.08,204.97,68.2914]
[1756485375877,7.42,205.08,204.98,4.3898]
[1756485376381,14.85264238,205.08,205.01,0.03434276]
[1756485376676,2.41874265,205.07,205.01,0.03434276]
[1756485376978,7.42,205.08,205.01,0.03434276]
[1756485377382,7.42,205.06,205.01,0.03434276]
[1756485377672,7.42,205.06,204.91,7.78]
[1756485377673,9.85422225,205.05,204.91,7.78]
[1756485377871,68.2565,205.08,204.87,4.03870995]
[1756485377872,7.42,204.97,204.87,4.03870995]
[1756485378074,2.41988309,204.96,204.87,4.03870995]
[1756485378274,7.42,204.97,204.87,4.03870995]
[1756485378475,2.41975433,204.96,204.87,4.03870995]
[1756485378777,9.85239671,204.95,204.87,4.03870995]
[1756485379073,9.8406863,204.94,204.87,4.03870995]
[1756485379269,7.42,204.91,204.87,4.03870995]
[1756485379578,126.94,204.91,204.87,4.03870995]
[1756485379780,7.42,204.88,204.87,4.03870995]
[1756485380781,0.48,204.88,204.84,5.38957707]
[1756485380982,7.42,204.85,204.84,5.38957707]
[1756485381178,75.76214238,204.86,204.81,8.06873297]
[1756485381680,7.42,204.82,204.7,25.674553]
[1756485381873,7.42,204.78,204.7,25.674553]
[1756485382074,7.43264238,204.79,204.7,21.278753]
[1756485382275,7.43264238,204.79,204.7,13.498753]
[1756485382574,7.42,204.78,204.7,13.498753]
[1756485382773,4.3947,204.76,204.7,13.498753]
[1756485382980,7.43264238,204.74,204.7,13.498753]
[1756485383175,7.43264238,204.71,204.7,13.498753]
[1756485384073,14.85264238,204.71,204.7,13.498753]
[1756485386183,14.88715164,204.73,204.7,13.498753]
[1756485386383,14.88715164,204.73,204.64,7.78]
[1756485387873,7.46715164,204.73,204.64,7.78]
[1756485388778,7.46715164,204.73,204.64,76.1817]
[1756485388976,7.46715164,204.73,204.65,68.3991]
[1756485389185,7.46715164,204.73,204.64,7.78]
[1756485390586,7.46715164,204.73,204.66,4.3967]
[1756485391285,7.46715164,204.73,204.64,7.78]
[1756485391482,14.88715164,204.73,204.64,7.78]
[1756485393788,7.43264238,204.67,204.57,7.78]
[1756485394792,7.43264238,204.67,204.57,12.1787]
[1756485394983,0.03252783,204.64,204.57,12.1787]
[1756485395589,0.03252783,204.64,204.57,7.78]
[1756485395789,7.46517021,204.64,204.57,7.78]
[1756485397687,0.03252783,204.64,204.61,7.8]
[1756485397893,0.03252783,204.64,204.62,7.8]
[1756485398494,0.03252783,204.64,204.63,7.8]
[1756485400095,0.03252783,204.64,204.57,7.8]
[1756485402301,4.3975,204.63,204.57,7.8]
[1756485402593,0.03252783,204.64,204.57,7.8]
[1756485403898,0.03252783,204.64,204.58,4.3984]
[1756485404194,0.03252783,204.64,204.5,68.4476]
[1756485404399,7.43264238,204.61,204.51,7.8]
[1756485404900,0.03639698,204.58,204.51,7.8]
[1756485405101,0.03639698,204.58,204.52,4.3996]
[1756485405401,0.03639698,204.58,204.51,7.8]
[1756485405697,0.03639698,204.58,204.54,4.3994]
[1756485405902,0.03639698,204.58,204.55,7.8]
[1756485407298,0.03639698,204.58,204.51,7.8]
[1756485407701,7.44,204.59,204.51,7.8]
[1756485408102,0.0326525,204.57,204.51,7.8]
[1756485409306,4.4314525,204.57,204.51,7.8]
[1756485409603,68.4594525,204.57,204.51,7.8]
[1756485409809,7.46529488,204.57,204.43,7.8]
[1756485410306,7.43264238,204.57,204.43,7.8]
[1756485410511,0.03687159,204.52,204.45,4.4011]
[1756485410707,0.03687159,204.52,204.43,7.8]
[1756485411403,0.03687159,204.52,204.47,7.8]
[1756485411598,0.03687159,204.52,204.49,7.8]
[1756485411908,0.03687159,204.52,204.5,7.8]
[1756485412108,0.03687159,204.52,204.46,68.4623]
[1756485412306,0.03687159,204.52,204.48,7.8]
[1756485412502,0.03687159,204.52,204.51,7.8]
[1756485413703,0.03687159,204.52,204.48,7.8]
[1756485415109,0.03687159,204.52,204.46,4.4009]
[1756485415309,0.03687159,204.52,204.46,12.2009]
[1756485415507,0.03687159,204.52,204.46,7.8]
[1756485415702,0.03687159,204.52,204.48,7.8]
[1756485416002,0.03687159,204.52,204.51,7.8]
[1756485417909,68.4507,204.5,204.41,7.8]
[1756485418306,7.44,204.51,204.41,7.8]
[1756485418710,0.03267661,204.48,204.35,7.8]
[1756485419011,4.4013,204.46,204.38,4.4027]
[1756485419404,0.0338697,204.44,204.38,68.4886]
[1756485419605,0.0338697,204.44,204.4,68.4822]
[1756485419802,6.97e-05,204.44,204.41,7.8]
[1756485420007,7.43264238,204.58,204.48,7.8]
[1756485420706,25.8,204.63,204.5,7.8]
[1756485420910,7.43264238,204.59,204.5,7.8]
[1756485421111,7.43264238,204.59,204.54,0.03568036]
[1756485421410,7.44,204.58,204.54,0.03568036]
[1756485421811,11.8387,204.58,204.54,0.03568036]
[1756485422004,7.43264238,204.62,204.54,0.03568036]
[1756485422511,11.83034238,204.62,204.54,4.43488036]
[1756485422912,7.43264238,204.62,204.54,0.03568036]
[1756485423113,4.3983,204.59,204.54,0.03568036]
[1756485423311,7.43264238,204.59,204.54,0.03568036]
[1756485423713,7.44,204.57,204.54,0.03568036]
[1756485424212,7.44,204.61,204.54,0.03568036]
[1756485424405,7.44,204.58,204.54,0.03568036]
[1756485425002,7.44,204.6,204.54,0.03568036]
[1756485425413,7.44,204.55,204.54,0.03568036]
[1756485425904,11.8392,204.55,204.54,0.03568036]
[1756485426103,15.35264238,204.55,204.4,94.44]
[1756485426309,2.4125441,204.54,204.42,7.8]
[1756485426510,14.87264238,204.55,204.42,7.8]
[1756485426707,14.87264238,204.55,204.42,76.2752]
[1756485427011,7.3,204.59,204.47,7.47]
[1756485427211,7.43264238,204.55,204.47,7.47]
[1756485427415,4.3998,204.53,204.42,75.9456]
[1756485427615,7.46490042,204.55,204.42,75.9456]
[1756485427814,7.3,204.57,204.47,68.4588]
[1756485428020,7.3,204.57,204.51,4.3999]
[1756485428316,0.03354362,204.54,204.48,7.47]
[1756485428916,0.03354362,204.54,204.48,11.8707]
[1756485429610,0.03354362,204.54,204.48,75.9257]
[1756485429806,0.03354362,204.54,204.52,7.47]
[1756485430015,18.36,204.63,204.54,7.47]
[1756485430211,14.73264238,204.66,204.54,7.47]
[1756485430414,2.4136139,204.65,204.54,7.47]
[1756485430611,14.73264238,204.66,204.54,7.47]
[1756485430807,2.41365341,204.65,204.55,68.4319]
[1756485431017,17.89,204.67,204.56,7.47]
[1756485431214,17.89,204.67,204.58,0.03361966]
[1756485431717,7.3,204.64,204.58,0.03361966]
[1756485432617,7.43264238,204.59,204.48,86.35]
[1756485432822,7.3,204.58,204.49,7.47]
[1756485433217,4.3989,204.57,204.49,7.47]
[1756485433720,7.3,204.58,204.49,7.47]
[1756485434020,0.03487677,204.55,204.49,7.47]
[1756485434813,0.03487677,204.55,204.48,4.4005]
[1756485434814,0.03487677,204.55,204.43,123.57]
[1756485435220,4.399,204.56,204.44,75.9388]
[1756485435424,0.03620513,204.51,204.44,75.9388]
[1756485435718,0.03620513,204.51,204.46,4.4011]
[1756485435920,7.33620513,204.51,204.42,134.51]
[1756485436220,0.03620513,204.51,204.42,202.985]
[1756485437016,0.03620513,204.51,204.42,75.945]
[1756485437527,0.03620513,204.51,204.17,525.6743]
[1756485437716,4.4009,204.47,204.36,7.47]
[1756485438221,0.03660233,204.44,204.36,7.47]
[1756485438723,21.19,204.43,204.39,4.4025]
[1756485439022,21.19,204.43,204.39,11.8725]
[1756485440919,21.19,204.43,204.39,7.47]
[1756485442321,21.19,204.43,204.35,9.77896348]
[1756485442519,21.19,204.43,204.35,5.37546348]
[1756485443628,28.49,204.43,204.35,5.37546348]
[1756485443926,35.92264238,204.43,204.35,5.37546348]
[1756485444523,4.4024,204.41,204.35,5.37546348]
[1756485446726,7.43264238,204.4,204.35,5.37546348]
[1756485447023,7.3,204.39,204.35,5.37546348]
[1756485447420,14.73264238,204.37,204.35,5.37546348]
[1756485447631,7.3,204.36,204.35,5.37546348]
[1756485448729,7.78,204.36,204.35,2.39946348]
[1756485448929,0.48,204.36,204.32,8.06319522]
[1756485449226,7.43264238,204.37,204.32,8.06319522]
[1756485449531,7.3,204.36,204.32,8.06319522]
[1756485449720,7.3,204.37,204.32,8.06319522]
[1756485449920,14.73264238,204.38,204.32,8.06319522]
[1756485450235,4.4035,204.36,204.32,8.06319522]
[1756485450424,14.73264238,204.35,204.32,8.06319522]
[1756485450620,7.43264238,204.35,204.32,8.06319522]
[1756485451232,0.03318722,204.36,204.32,4.404]
[1756485451428,0.03318722,204.36,204.32,68.5092]
[1756485451828,0.03318722,204.36,204.34,4.4036]
[1756485452023,8.722e-05,204.36,204.35,7.47]
[1756485452227,21.19,204.43,204.37,75.9622]
[1756485452431,21.19,204.43,204.37,7.47]
[1756485452827,13.4385,204.43,204.39,68.4856]
[1756485453022,0.0001,204.43,204.39,68.4856]
[1756485453226,0.0001,204.43,204.4,7.47]
[1756485453430,0.0001,204.43,204.39,68.4856]
[1756485453630,0.0001,204.43,204.42,7.47]
[1756485456634,4.3994,204.54,204.42,76.424]
[1756485456929,7.3,204.56,204.45,7.73]
[1756485457237,7.3,204.56,204.49,4.4003]
[1756485458134,4.4005,204.49,204.48,0.03177021]
[1756485458333,14.78264238,204.49,204.42,1.0]
[1756485458529,7.35,204.44,204.37,7.73]
[1756485458735,7.35,204.44,204.3,68.5145]
[1756485458736,7.43264238,204.42,204.32,7.73]
[1756485459539,0.03522229,204.39,204.32,7.73]
[1756485459740,0.03522229,204.39,204.35,12.1334]
[1756485460041,0.03522229,204.39,204.35,4.4034]
[1756485460236,0.03522229,204.39,204.35,12.1334]
[1756485460437,23.78,204.47,204.41,7.73]
[1756485460637,7.43264238,204.46,204.36,134.77]
[1756485461034,7.43264238,204.46,204.36,7.73]
[1756485461235,14.78264238,204.46,204.36,7.73]
[1756485461637,14.78264238,204.46,204.39,0.03209618]
[1756485462139,19.18394238,204.46,204.39,0.03209618]
[1756485462339,14.78264238,204.46,204.39,0.03209618]
[1756485464040,7.35,204.46,204.39,4.43459618]
[1756485464242,7.35,204.46,204.39,0.03209618]
[1756485464939,7.35,204.46,204.39,4.43469618]
[1756485465235,7.35,204.46,204.39,0.03209618]
[1756485465442,23.78,204.47,204.45,4.4013]
[1756485466342,23.78,204.47,204.44,0.0325449]
[1756485466343,31.13,204.47,204.44,0.0325449]
[1756485467546,7.35,204.46,204.44,0.0325449]
[1756485468048,31.21264238,204.47,204.44,0.0325449]
[1756485468348,7.35,204.45,204.44,0.0325449]
[1756485469143,31.13,204.47,204.44,0.0325449]
[1756485470142,23.78,204.47,204.45,7.73]
[1756485470738,23.78,204.47,204.44,0.0325449]
[1756485471034,23.78,204.47,204.45,4.4012]
[1756485471645,23.78,204.47,204.45,12.1312]
[1756485472242,23.78,204.47,204.45,4.4012]
[1756485472443,23.78,204.47,204.44,0.0325449]
[1756485472844,31.13,204.47,204.44,0.0325449]
[1756485473242,23.78,204.47,204.44,4.4338449]
[1756485473946,7.35,204.46,204.44,0.0325449]
[1756485474244,23.78,204.47,204.44,7.7625449]
[1756485474438,23.78,204.47,204.45,4.4013]